bitfinex-derivatives/quotes_ETHF0:USTF0_20251012
["timestamp","ask_amount","ask_price","bid_price","bid_amount"]
[1760258008905,42.62777464,3834.2,3834.1,0.50712354]
[1760258009406,42.15874464,3834.2,3834.1,0.50712354]
[1760258010008,41.0387,3834.2,3834.1,1.30272354]
[1760258010203,0.2388,3835.0,3834.9,1.04564]
[1760258010399,0.4775,3835.0,3834.9,0.80964]
[1760258010700,1.31844464,3835.0,3834.9,0.46894]
[1760258010902,1.31844464,3835.0,3834.9,0.5044373]
[1760258011206,42.58737464,3835.0,3834.9,0.0354973]
[1760258011408,43.29760395,3835.0,3834.9,0.0354973]
[1760258011702,43.29760395,3835.0,3834.1,0.34328624]
[1760258011703,0.3185,3834.4,3834.1,0.00258624]
[1760258012008,1.31844464,3834.2,3834.1,0.47162624]
[1760258012306,1.78747464,3834.2,3834.1,0.47162624]
[1760258012507,1.31844464,3834.2,3834.1,0.47162624]
[1760258012708,42.11844464,3834.2,3834.1,0.47162624]
[1760258013209,42.58747464,3834.2,3834.1,0.47162624]
[1760258017411,42.11844464,3834.2,3834.1,0.81232624]
[1760258017804,42.58747464,3834.2,3834.1,0.47162624]
[1760258018508,42.58747464,3834.2,3834.1,0.00258624]
[1760258019306,0.796,3833.4,3833.3,3.2078]
[1760258019511,0.796,3833.4,3833.3,3.7845]
[1760258019714,0.796,3833.4,3833.3,4.01764]
[1760258019910,41.596,3833.4,3833.3,3.67694]
[1760258020307,41.59821822,3833.4,3833.3,3.67900485]
[1760258020702,42.12066286,3833.4,3833.3,3.67900485]
[1760258021716,42.58979286,3833.4,3833.3,3.67900485]
[1760258022217,42.58979286,3833.4,3833.3,3.20986485]
[1760258022413,42.58979286,3833.4,3833.3,0.00206485]
[1760258031219,41.59821822,3833.4,3833.3,0.47120485]
[1760258032614,40.80221822,3833.4,3833.3,9.48950485]
[1760258032821,41.04191822,3833.4,3833.3,9.48950485]
[1760258033021,41.27171822,3833.4,3833.3,9.48950485]
[1760258037226,41.27171822,3833.4,3833.3,6.28170485]
[1760258037424,41.27171822,3833.4,3833.3,9.48950485]
[1760258037821,41.59051822,3833.4,3833.3,4.02790485]
[1760258038020,41.59051822,3833.4,3833.3,4.25070485]
[1760258038225,41.59051822,3833.4,3833.3,4.48950485]
[1760258038522,41.27171822,3833.4,3833.3,4.48950485]
[1760258039928,41.27171822,3833.4,3833.3,1.28170485]
[1760258040221,42.11296286,3833.4,3833.3,0.47120485]
[1760258041728,42.58209286,3833.4,3833.3,0.47120485]
[1760258044832,42.58209286,3833.4,3833.3,0.00206485]
[1760258045828,42.58209286,3833.4,3833.3,0.47120485]
[1760258046028,42.58209286,3833.4,3833.3,1.04290485]
[1760258046634,42.58209286,3833.4,3833.3,0.47120485]
[1760258046833,42.58209286,3833.4,3833.3,0.00206485]
[1760258047039,42.58209286,3833.4,3833.3,1.04290485]
[1760258047744,42.11296286,3833.4,3833.3,1.04290485]
[1760258048444,42.83350796,3833.4,3833.3,1.04290485]
[1760258048841,43.30263796,3833.4,3833.3,1.04290485]
[1760258049538,43.30263796,3833.4,3833.3,0.00206485]
[1760258049745,42.83350796,3833.4,3833.3,0.47120485]
[1760258049942,42.83350796,3833.4,3833.3,0.81880485]
[1760258051139,42.83350796,3833.4,3833.3,1.05750485]
[1760258053349,42.31106332,3833.4,3833.3,1.05750485]
[1760258053548,42.31106332,3833.4,3833.3,1.28220485]
[1760258053750,0.00221822,3833.4,3833.3,6.28220485]
[1760258053947,0.4711,3834.1,3834.0,1.41626]
[1760258054251,0.7915,3834.1,3834.0,1.41626]
[1760258054848,41.27416507,3834.1,3834.0,1.41626]
[1760258057844,41.27416507,3834.1,3834.0,4.62406]
[1760258059148,41.04106507,3834.1,3834.0,4.62406]
[1760258060252,40.80306507,3834.1,3834.0,4.62406]
[1760258061854,41.04106507,3834.1,3834.0,4.62406]
[1760258063256,40.80306507,3834.1,3834.0,4.62406]
[1760258065061,0.4711,3834.9,3834.8,1.27996]
[1760258065358,0.4711,3835.4,3835.3,1.2799]
[1760258065861,0.99354464,3835.4,3835.3,1.2799]
[1760258066062,41.04133654,3835.4,3835.3,1.2799]
[1760258066263,40.80333654,3835.4,3835.3,1.2799]
[1760258068663,40.80333654,3835.4,3835.3,6.2799]
[1760258072761,0.7915,3836.2,3836.1,0.7075]
[1760258072964,0.7915,3836.2,3836.1,1.2798]
[1760258073164,0.99354464,3836.2,3836.1,1.2798]
[1760258073671,41.32491925,3836.2,3836.1,1.28180733]
[1760258074569,40.80247461,3836.2,3836.1,1.28180733]
[1760258076464,41.04047461,3836.2,3836.1,1.28180733]
[1760258077068,41.79601925,3836.2,3836.1,1.28180733]
[1760258077666,40.80247461,3836.2,3836.1,1.28180733]
[1760258079862,0.00247461,3836.2,3836.1,6.28180733]
[1760258080069,0.224,3837.5,3837.4,0.92533]
[1760258080268,0.224,3837.5,3837.4,1.25543]
[1760258080470,0.74644464,3837.5,3837.4,1.25543]
[1760258080664,0.97714464,3837.5,3837.4,1.25543]
[1760258080866,41.77714464,3837.5,3837.4,1.25543]
[1760258081066,41.78046266,3837.5,3837.4,1.25543]
[1760258081465,42.24909266,3837.5,3837.4,1.25543]
[1760258081665,41.78046266,3837.5,3837.4,1.25543]
[1760258083065,41.32576266,3837.5,3837.4,1.25543]
[1760258083266,40.80331802,3837.5,3837.4,4.46323]
[1760258083565,40.80331802,3837.5,3837.4,9.46323]
[1760258086072,40.80331802,3837.5,3837.4,4.46323]
[1760258090179,40.80331802,3837.5,3837.4,9.46323]
[1760258091377,40.80331802,3837.5,3837.4,4.46323]
[1760258091782,42.03369266,3837.5,3837.4,3.9946]
[1760258091979,42.27559266,3837.5,3837.4,4.46324]
[1760258092681,42.59369266,3837.5,3837.4,4.23784]
[1760258092882,42.27559266,3837.5,3837.4,4.45704]
[1760258093182,41.80696266,3837.5,3837.4,4.45704]
[1760258094478,42.27559266,3837.5,3837.4,4.45704]
[1760258094782,41.80696266,3837.5,3837.4,4.45704]
[1760258094988,40.80331802,3837.5,3837.4,4.45704]
[1760258095289,0.00331802,3837.5,3837.4,4.45704]
[1760258095788,41.32576266,3837.5,3837.4,4.45704]
[1760258097584,41.80696266,3837.5,3837.4,4.45704]
[1760258099782,42.12506266,3837.5,3837.4,4.45704]
[1760258100080,42.59369266,3837.5,3837.4,3.2078]
[1760258100288,48.43941487,3837.5,3837.4,3.2078]
[1760258100490,0.4812,3837.2,3837.1,0.46868]
[1760258100686,40.80331802,3837.5,3837.4,1.27514]
[1760258100882,0.00331802,3837.5,3837.4,4.48294]
[1760258110088,40.8,3838.2,3838.1,0.94715]
[1760258110295,41.51493186,3838.2,3838.1,4.51755]
[1760258110698,42.0373765,3838.2,3838.1,4.51755]
[1760258111198,42.04074926,3838.2,3838.1,4.51755]
[1760258111398,42.26714926,3838.2,3838.1,4.51755]
[1760258113105,42.48614926,3838.2,3838.1,4.51755]
[1760258113300,42.04074926,3838.2,3838.1,4.51755]
[1760258113995,42.26714926,3838.2,3838.1,4.51755]
[1760258115496,41.51830462,3838.2,3838.1,4.51755]
[1760258115703,0.00337276,3838.2,3838.1,4.51755]
[1760258115899,0.93088263,3839.3,3838.8,1.17116]
[1760258116103,0.2264,3839.3,3839.2,4.51742]
[1760258116302,0.93264312,3839.3,3839.2,4.51742]
[1760258116504,1.45508776,3839.3,3839.2,4.51742]
[1760258116805,42.47408776,3839.3,3839.2,4.51742]
[1760258117006,42.47643407,3839.3,3839.2,4.51963829]
[1760258117692,42.03103407,3839.3,3839.2,4.51963829]
[1760258118093,41.32479095,3839.3,3839.2,4.51963829]
[1760258119203,40.80234631,3839.3,3839.2,4.51963829]
[1760258119502,1e-08,3839.3,3839.2,9.51963829]
[1760258119806,4.12146,3840.6,3840.5,0.737]
[1760258120015,5.14389899,3840.6,3840.5,0.737]
[1760258120298,45.99808363,3840.6,3840.5,0.737]
[1760258120498,46.46633363,3840.6,3840.5,0.737]
[1760258120700,46.46960667,3840.6,3840.5,0.737]
[1760258121906,46.46960667,3840.6,3840.5,0.4963]
[1760258122110,0.7637,3840.5,3840.4,1.07157]
[1760258122405,1.28614464,3840.5,3840.4,0.83087]
[1760258122600,0.96784464,3840.5,3840.4,1.30947]
[1760258124409,1.43610464,3840.5,3840.4,1.30947]
[1760258124718,0.96784464,3840.5,3840.4,1.30947]
[1760258125406,1.43610464,3840.5,3840.4,1.30947]
[1760258126411,0.96784464,3840.5,3840.4,1.30947]
[1760258126800,0.52244464,3840.5,3840.4,1.30947]
[1760258127006,40.80327304,3840.6,3840.5,1.44316]
[1760258128209,0.00327304,3840.6,3840.5,1.44316]
[1760258130814,0.22967304,3840.6,3840.5,1.44316]
[1760258131007,0.75211768,3840.6,3840.5,1.44316]
[1760258131207,0.00327304,3840.6,3840.5,1.44316]
[1760258144924,0.75591768,3840.6,3840.5,1.44316]
[1760258145320,0.52571768,3840.6,3840.5,1.44316]
[1760258145723,0.99301768,3840.6,3840.5,0.83086]
[1760258145921,1.31121768,3840.6,3840.5,0.83086]
[1760258146420,1.31121768,3840.6,3840.5,1.05896]
[1760258146821,1.31121768,3840.6,3840.5,0.3626]
[1760258147022,0.4673,3840.4,3840.3,3.2078]
[1760258147236,1.30794464,3840.4,3840.3,3.2078]
[1760258147623,1.77621464,3840.4,3840.3,3.2078]
[1760258147827,47.57621464,3840.4,3840.3,3.2078]
[1760258148329,48.27453694,3840.4,3840.3,1.83496409]
[1760258148528,47.95633694,3840.4,3839.9,0.46833]
[1760258148831,1.30794464,3840.0,3839.9,0.46833]
[1760258150431,1.30794464,3840.0,3839.7,4.01215]
[1760258150633,1.30794464,3839.8,3839.7,4.01215]
[1760258151226,42.10794464,3839.8,3839.7,4.01215]
[1760258151529,42.10794464,3839.8,3839.7,3.5438]
[1760258151732,42.10794464,3839.8,3839.5,0.46838]
[1760258151733,47.10794464,3839.8,3839.5,0.46838]
[1760258151935,47.10794464,3839.8,3839.3,0.336]
[1760258151936,0.7855,3839.4,3839.3,0.336]
[1760258152230,1.30794464,3839.4,3839.3,0.336]
[1760258152726,1.30794464,3839.4,3839.1,0.46842]
[1760258152933,1.30794464,3839.3,3839.1,0.46842]
[1760258153532,42.10794464,3839.3,3839.2,0.47063829]
[1760258154127,42.10794464,3839.3,3839.2,1.03473829]
[1760258154322,40.8,3839.3,3839.2,1.26813829]
[1760258156536,42.10794464,3839.3,3839.2,0.33821829]
[1760258156938,42.10794464,3839.3,3839.2,0.00221829]
[1760258158029,47.57635464,3839.3,3839.2,0.00221829]
[1760258158236,50.78415464,3839.3,3839.2,0.00221829]
[1760258159138,50.78415464,3839.3,3838.4,3.2078]
[1760258159139,0.7855,3838.5,3838.4,4.01231]
[1760258159328,0.3182,3839.3,3838.9,0.336]
[1760258159532,0.7855,3839.3,3839.2,0.5641]
[1760258159726,41.5855,3839.3,3839.2,0.5641]
[1760258159928,42.10794464,3839.3,3839.2,0.336]
[1760258160133,42.10794464,3839.3,3839.2,0.00206406]
[1760258162934,41.78974464,3839.3,3839.2,1.26798406]
[1760258163146,41.2673,3839.3,3839.2,1.26798406]
[1760258164133,50.78415464,3839.3,3839.2,0.00206406]
[1760258164540,1.32821,3838.5,3837.6,3.2078]
[1760258164737,0.98974464,3838.1,3838.0,0.83277]
[1760258164937,0.98974464,3838.1,3838.0,1.06617]
[1760258165441,41.78974464,3838.1,3838.0,1.40499061]
[1760258167443,41.78974464,3838.1,3838.0,0.70302061]
[1760258167444,42.10584464,3838.1,3838.0,0.70302061]
[1760258167631,42.10584464,3838.1,3838.0,0.33882061]
[1760258168036,42.10584464,3838.1,3838.0,1.03549061]
[1760258168645,41.78974464,3838.1,3838.0,1.40499061]
[1760258174242,40.8,3838.1,3838.0,4.61279061]
[1760258174948,41.0402,3838.1,3838.0,4.61279061]
[1760258175345,41.2708,3838.1,3838.0,4.61279061]
[1760258175550,41.5855,3838.1,3838.0,1.40499061]
[1760258175753,42.10794464,3838.1,3838.0,1.17159061]
[1760258177039,41.79324464,3838.1,3838.0,1.41139061]
[1760258177654,42.10794464,3838.1,3838.0,0.00282061]
[1760258177849,42.10794464,3838.1,3837.1,1.1717]
[1760258177850,0.4708,3837.3,3837.1,3.2078]
[1760258178148,0.4708,3837.3,3836.7,1.17181]
[1760258178149,0.4708,3837.0,3836.8,0.3513]
[1760258178450,0.7855,3837.0,3836.7,3.2078]
[1760258178751,1.30794464,3836.8,3836.7,3.56117526]
[1760258178957,42.10794464,3836.8,3836.7,4.02989526]
[1760258179255,42.10794464,3836.8,3836.7,3.56117526]
[1760258179458,42.10794464,3836.8,3836.7,3.20987526]
[1760258179648,42.10794464,3836.8,3836.7,3.67859526]
[1760258180048,41.79324464,3836.8,3836.7,4.50199526]
[1760258180249,42.10794464,3836.8,3836.7,3.79347526]
[1760258180456,42.10794464,3836.8,3836.7,0.00207526]
[1760258180846,42.10794464,3836.8,3836.7,0.47079526]
[1760258181043,42.10794464,3836.8,3836.7,0.00207526]
[1760258183348,47.57665464,3836.8,3836.7,0.00207526]
[1760258183949,0.7834,3836.0,3835.9,3.2078]
[1760258184151,1.30584464,3836.0,3835.9,3.2078]
[1760258184351,1.43934464,3836.0,3835.9,3.2078]
[1760258184556,42.23934464,3836.0,3835.9,3.2078]
[1760258185055,42.23934464,3836.0,3835.9,3.21037231]
[1760258185259,42.10584464,3836.0,3835.9,4.03049231]
[1760258186353,41.2708,3836.0,3835.9,4.50259231]
[1760258186751,41.5834,3836.0,3835.9,4.50259231]
[1760258187049,41.5834,3836.0,3835.9,4.26279231]
[1760258188356,41.2708,3836.0,3835.9,4.50259231]
[1760258188955,40.8,3836.0,3835.9,4.50259231]
[1760258189261,40.8,3836.0,3835.9,9.50259231]
[1760258191559,41.5834,3836.0,3835.9,4.03049231]
[1760258191856,41.2708,3836.0,3835.9,4.26279231]
[1760258192157,40.8,3836.0,3835.9,4.50259231]
[1760258193559,41.0402,3836.0,3835.9,4.50259231]
[1760258193861,40.8,3836.0,3835.9,4.50259231]
[1760258196562,41.0402,3836.0,3835.9,4.50259231]
[1760258196762,41.5834,3836.0,3835.9,4.26279231]
[1760258196967,42.10584464,3836.0,3835.9,4.26279231]
[1760258197166,41.79324464,3836.0,3835.9,4.50259231]
[1760258198158,41.79324464,3836.0,3835.9,4.26279231]
[1760258198664,41.79324464,3836.0,3835.9,4.50259231]
[1760258200164,41.32244464,3836.0,3835.9,4.50259231]
[1760258200765,40.8,3836.0,3835.9,4.50259231]
[1760258205562,41.03,3836.0,3835.9,4.50259231]
[1760258206859,41.03,3836.0,3835.9,1.29479231]
[1760258207160,41.03,3836.0,3835.9,4.50259231]
[1760258208062,41.03,3836.0,3835.9,4.03049231]
[1760258208063,42.08564464,3836.0,3835.9,4.03049231]
[1760258208963,42.08564464,3836.0,3835.9,4.02239231]
[1760258210168,42.08564464,3836.0,3835.9,3.67919231]
[1760258210369,42.21914464,3836.0,3835.9,3.67919231]
[1760258210868,42.08564464,3836.0,3835.9,3.67919231]
[1760258211264,42.08564464,3836.0,3835.9,4.02239231]
[1760258211463,42.21914464,3836.0,3835.9,3.67919231]
[1760258211665,51.1403647,3836.0,3835.9,0.00257231]
[1760258212569,51.1403647,3836.0,3835.9,0.47139231]
[1760258214166,51.1403647,3836.0,3835.9,0.00257231]
[1760258214660,51.1403647,3836.0,3835.9,0.47139231]
[1760258215570,46.0068647,3836.0,3835.9,1.04209231]
[1760258216067,42.7990647,3836.0,3835.9,0.81459231]
[1760258216268,42.4846647,3836.0,3835.9,1.27939231]
[1760258216469,41.77124464,3836.0,3835.9,1.27939231]
[1760258216666,42.08564464,3836.0,3835.9,1.27939231]
[1760258217066,42.08564464,3836.0,3835.9,1.04209231]
[1760258217265,42.94161854,3836.0,3835.9,0.47139231]
[1760258217661,42.80811854,3836.0,3835.9,0.47139231]
[1760258217867,42.80811854,3836.0,3835.9,1.04209231]
[1760258218172,42.08564464,3836.0,3835.9,1.04209231]
[1760258218973,41.77124464,3836.0,3835.9,1.27939231]
[1760258219162,41.03,3836.0,3835.9,1.27939231]
[1760258220373,40.8,3836.0,3835.9,1.27939231]
[1760258220575,41.5632,3836.0,3835.9,1.27939231]
[1760258220777,41.2488,3836.0,3835.9,1.27939231]
[1760258220971,41.5632,3836.0,3835.9,1.27939231]
[1760258221772,42.21914464,3836.0,3835.9,0.47139231]
[1760258221967,42.94161853,3836.0,3835.9,0.00257231]
[1760258223286,42.21914464,3836.0,3835.9,0.00257231]
[1760258224080,42.21914464,3836.0,3835.9,0.47139231]
[1760258224280,42.08564464,3836.0,3835.9,1.04209231]
[1760258224487,42.08564464,3836.0,3835.9,0.47139231]
[1760258224688,42.21914464,3836.0,3835.9,0.47139231]
[1760258225083,42.08564464,3836.0,3835.9,0.69889231]
[1760258225289,41.2488,3836.0,3835.9,1.27939231]
[1760258225586,40.8,3836.0,3835.9,1.27939231]
[1760258227290,40.19935,3836.0,3835.9,6.27939231]
[1760258227584,0.00240366,3837.0,3835.9,6.27939231]
[1760258227585,0.45120366,3837.0,3836.9,1.2767]
[1760258228184,40.80240366,3837.0,3836.9,1.2767]
[1760258228586,41.03240366,3837.0,3836.9,1.2767]
[1760258229087,40.80240366,3837.0,3836.9,1.2767]
[1760258229293,40.80240366,3837.0,3836.9,9.4845]
[1760258229485,3.2078,3837.8,3837.7,1.2766]
[1760258229486,0.4488,3837.8,3837.7,1.2766]
[1760258229787,0.4488,3838.2,3838.1,1.27655]
[1760258230189,0.75244464,3838.2,3838.1,1.27655]
[1760258230389,41.55555782,3838.2,3838.1,1.27655]
[1760258230585,41.03311318,3838.2,3838.1,1.27655]
[1760258231795,41.25411318,3838.2,3838.1,1.27655]
[1760258232091,41.25411318,3838.2,3837.3,3.5631]
[1760258232092,0.3141,3837.5,3837.3,3.5631]
[1760258232294,1.28914464,3837.4,3837.3,0.46865]
[1760258232890,42.08914464,3837.4,3837.3,1.04525]
[1760258233091,41.5667,3837.4,3837.3,1.04525]
[1760258233892,41.2526,3837.4,3837.3,1.04525]
[1760258234095,41.2526,3837.4,3837.3,1.28185]
[1760258234492,41.5667,3837.4,3837.3,1.28185]
[1760258235196,41.5667,3837.4,3837.3,1.04525]
[1760258235897,42.08914464,3837.4,3837.3,0.46865]
[1760258239397,42.08914464,3837.4,3837.3,0.82395]
[1760258242399,41.2526,3837.4,3837.3,1.28185]
[1760258243697,40.8,3837.4,3837.3,4.48965]
[1760258244098,41.2526,3837.4,3837.3,4.48965]
[1760258245009,41.2526,3837.4,3837.3,1.28185]
[1760258245708,42.08914464,3837.4,3837.3,0.46865]
[1760258246008,42.08914464,3837.4,3837.3,0.82395]
[1760258246208,41.5667,3837.4,3837.3,0.82395]
[1760258246410,40.8,3837.4,3837.3,4.48965]
[1760258246599,40.8,3837.4,3837.3,9.48965]
[1760258246805,0.3141,3838.1,3837.3,9.48965]
[1760258246806,0.7667,3838.1,3838.0,1.18767]
[1760258247002,0.7667,3838.1,3838.0,1.04517]
[1760258247208,1.28914464,3838.1,3838.0,1.04517]
[1760258247410,0.97504464,3838.1,3838.0,1.18767]
[1760258247611,0.97504464,3838.1,3838.0,1.42427]
[1760258247913,41.77504464,3838.1,3838.0,1.42427]
[1760258248402,41.2526,3838.1,3838.0,1.42427]
[1760258253415,40.8,3838.1,3838.0,1.42427]
[1760258254719,41.2526,3838.1,3838.0,1.42427]
[1760258255816,41.5667,3838.1,3838.0,1.42427]
[1760258257518,0.7667,3837.7,3837.6,0.82392]
[1760258257814,0.4526,3837.5,3837.4,4.25304]
[1760258258022,0.97504464,3837.5,3837.4,4.48964]
[1760258258315,41.2526,3837.5,3837.4,4.48964]
[1760258260017,41.2526,3837.5,3837.0,0.1425]
[1760258260018,0.3146,3837.4,3837.0,3.67648]
[1760258260218,1.30374464,3837.1,3837.0,3.5636]
[1760258260415,1.77242464,3837.1,3837.0,3.2078]
[1760258260620,0.4667,3836.6,3836.5,1.42085]
[1760258260822,0.2258,3836.6,3836.5,1.42085]
[1760258261120,41.0258,3836.6,3836.5,1.42085]
[1760258261330,40.8,3836.6,3836.5,1.42085]
[1760258264621,41.019,3836.6,3836.5,1.42085]
[1760258270428,41.2583,3836.6,3836.5,1.42085]
[1760258271429,41.019,3836.6,3836.5,1.42085]
[1760258272531,40.8,3836.6,3836.5,1.42085]
[1760258273031,41.32244464,3836.6,3836.5,1.42085]
[1760258274420,41.54144464,3836.6,3836.5,1.42085]
[1760258275035,41.32244464,3836.6,3836.5,1.42085]
[1760258275625,41.54144464,3836.6,3836.5,1.42085]
[1760258277138,41.32244464,3836.6,3836.5,1.42085]
[1760258278437,41.54144464,3836.6,3836.5,1.42085]
[1760258278939,42.09334464,3836.6,3836.5,1.18745]
[1760258279237,42.09334464,3836.6,3836.5,0.82455]
[1760258279935,42.09334464,3836.6,3836.5,1.18765]
[1760258280241,40.8,3836.6,3836.5,1.41775]
[1760258280835,41.019,3836.6,3836.5,1.41775]
[1760258281338,41.2583,3836.6,3836.5,1.41775]
[1760258281538,41.78074464,3836.6,3836.5,1.41775]
[1760258282842,42.09334464,3836.6,3836.5,1.05055]
[1760258283034,42.09334464,3836.6,3836.5,0.82455]
[1760258283541,42.09334464,3836.6,3836.5,0.46875]
[1760258284535,42.09334464,3836.6,3836.0,4.52231]
[1760258284736,1.29334464,3836.1,3836.0,0.46881]
[1760258285334,42.09334464,3836.1,3836.0,0.46881]
[1760258286440,42.56214464,3836.1,3836.0,0.46881]
[1760258287440,42.09334464,3836.1,3836.0,0.46881]
[1760258288743,42.56214464,3836.1,3836.0,0.46881]
[1760258289249,42.09334464,3836.1,3836.0,0.46881]
[1760258289640,42.09334464,3836.1,3836.0,0.82351]
[1760258290446,42.56214464,3836.1,3836.0,0.46881]
[1760258296142,42.0397,3836.1,3836.0,0.46881]
[1760258296349,42.56214464,3836.1,3836.0,0.46881]
[1760258299053,42.09334464,3836.1,3836.0,0.46881]
[1760258302452,42.09334464,3836.1,3836.0,0.83121]
[1760258302955,42.09334464,3836.1,3836.0,0.46881]
[1760258304352,42.09334464,3836.1,3836.0,0.83121]
[1760258305254,42.09334464,3836.1,3836.0,0.46881]
[1760258306655,42.09334464,3836.1,3835.9,0.47139231]
[1760258306656,1.27631,3836.0,3835.9,0.47139231]
[1760258306948,1.79875464,3836.0,3835.9,0.47139231]
[1760258307345,1.32994464,3836.0,3835.9,0.47139231]
[1760258307554,1.79875464,3836.0,3835.9,0.00257231]
[1760258307751,2.55965299,3836.0,3835.9,0.00257231]
[1760258307953,2.55965299,3836.0,3835.9,0.47139231]
[1760258308560,2.55965299,3836.0,3835.9,0.00257231]
[1760258308755,2.55965299,3836.0,3835.9,0.47139231]
[1760258308944,43.35965299,3836.0,3835.9,0.47139231]
[1760258311257,42.85344299,3836.0,3835.9,1.29489231]
[1760258311554,42.85344299,3836.0,3835.9,1.07519231]
[1760258311949,42.85344299,3836.0,3835.9,0.83379231]
[1760258313061,43.32225299,3836.0,3835.9,0.83379231]
[1760258313357,42.85344299,3836.0,3835.9,1.07519231]
[1760258314860,42.85344299,3836.0,3835.9,0.83379231]
[1760258316163,42.89084299,3836.0,3835.9,0.47139231]
[1760258316362,42.85344299,3836.0,3835.9,0.47139231]
[1760258316759,42.85344299,3836.0,3835.9,0.83379231]
[1760258317466,42.85344299,3836.0,3835.9,0.47139231]
[1760258318766,42.09254464,3836.0,3835.9,0.47139231]
[1760258318972,42.85453173,3836.0,3835.9,0.47139231]
[1760258319170,43.36074173,3836.0,3835.9,0.47139231]
[1760258319672,43.36074173,3836.0,3835.3,1.53465]
[1760258319673,0.4556,3835.1,3834.8,0.46895]
[1760258319868,0.46895,3834.9,3834.7,0.82797]
[1760258320173,1.26256,3834.8,3834.7,0.359]
[1760258320373,42.83421193,3834.8,3834.7,0.359]
[1760258320667,0.1331,3834.5,3834.0,3.2078]
[1760258320872,0.7936,3834.1,3834.0,0.00246055]
[1760258321574,41.5936,3834.1,3834.0,0.00246055]
[1760258321770,42.06264,3834.1,3834.0,0.00246055]
[1760258322266,42.58508464,3834.1,3834.0,0.00246055]
[1760258322466,42.58508464,3834.1,3833.0,0.5013]
[1760258322467,0.46914,3833.4,3833.0,0.5013]
[1760258322668,0.7936,3833.1,3833.0,0.46917]
[1760258322869,0.7936,3832.9,3832.8,0.38509059]
[1760258323265,42.11604464,3832.9,3832.8,0.02609059]
[1760258323672,42.11604464,3832.9,3832.8,0.02820514]
[1760258323972,41.0366,3832.9,3832.8,0.81920514]
[1760258324173,41.0247,3832.9,3832.8,0.81920514]
[1760258324874,40.8,3832.9,3832.8,5.81920514]
[1760258325472,41.0247,3832.9,3832.8,0.81920514]
[1760258325873,40.8,3832.9,3832.8,0.81920514]
[1760258329273,40.8,3832.9,3832.8,5.81920514]
[1760258331877,3.4325,3833.9,3833.8,0.791]
[1760258332077,0.2247,3833.9,3833.8,1.26008]
[1760258332274,0.98754464,3833.9,3833.8,1.26008]
[1760258332876,42.10224464,3833.9,3833.8,1.26008]
[1760258333483,41.32244464,3833.9,3833.8,1.26008]
[1760258333684,40.8,3833.9,3833.8,1.26008]
[1760258333887,41.0247,3833.9,3833.8,1.26008]
[1760258336282,42.10224464,3833.9,3833.8,0.80468]
[1760258336477,41.78754464,3833.9,3833.8,1.26008]
[1760258336871,41.0247,3833.9,3833.8,1.26008]
[1760258337275,41.0247,3833.9,3833.8,4.46788]
[1760258337885,40.8,3833.9,3833.8,4.46788]
[1760258340674,41.0247,3833.9,3833.8,4.46788]
[1760258342292,40.8,3833.9,3833.8,4.46788]
[1760258343686,40.8,3833.9,3833.8,1.26008]
[1760258343888,40.8,3833.9,3833.8,4.46788]
[1760258344586,41.0247,3833.9,3833.8,4.46788]
[1760258344984,40.8,3833.9,3833.8,4.46788]
[1760258345383,0.46831915,3834.8,3834.7,1.25997]
[1760258345683,0.00321915,3834.8,3834.7,1.25997]
[1760258345883,9.15e-06,3834.8,3834.7,4.46777]
[1760258346084,9.15e-06,3834.8,3834.7,9.46777]
[1760258346286,3.6729,3835.7,3835.6,0.46886]
[1760258346485,44.4729,3835.7,3835.6,1.25986]
[1760258346685,41.78754464,3835.7,3835.6,1.25986]
[1760258347486,40.80215334,3835.7,3835.6,1.26313781]
[1760258347681,3.4325,3836.7,3836.6,0.69214]
[1760258347879,4.19534464,3836.7,3836.6,1.02774]
[1760258348588,44.99534464,3836.7,3836.6,1.02774]
[1760258348788,44.99763633,3836.7,3836.6,1.02774]
[1760258349189,45.77425791,3836.7,3836.6,1.25974]
[1760258349384,41.78983633,3836.7,3836.6,1.25974]
[1760258350693,42.10413633,3836.7,3836.6,0.80434]
[1760258350888,42.10413633,3836.7,3836.6,1.03814]
[1760258351791,41.78983633,3836.7,3836.6,1.03814]
[1760258352090,41.78983633,3836.7,3836.6,1.27304]
[1760258352892,42.10413633,3836.7,3836.6,1.27304]
[1760258353591,41.78983633,3836.7,3836.6,1.27304]
[1760258353790,0.00229169,3836.7,3836.6,4.48084]
[1760258354095,2.47975424,3837.5,3837.4,1.27504]
[1760258354786,43.27975424,3837.5,3837.4,1.27504]
[1760258355188,43.80413935,3837.5,3837.4,1.27504]
[1760258356386,44.04653935,3837.5,3837.4,1.27504]
[1760258356593,44.36083935,3837.5,3837.4,0.80634]
[1760258356992,44.36083935,3837.5,3837.4,1.04014]
[1760258357989,44.04653935,3837.5,3837.4,1.04014]
[1760258359088,44.36083935,3837.5,3837.4,0.46864]
[1760258359291,44.36083935,3837.5,3837.4,0.80634]
[1760258359495,44.04653935,3837.5,3837.4,1.04014]
[1760258359796,44.04653935,3837.5,3837.4,1.27504]
[1760258360184,44.36083935,3837.5,3837.4,1.27504]
[1760258360996,44.36083935,3837.5,3837.4,1.04014]
[1760258361183,41.79138511,3837.5,3837.4,1.27504]
[1760258369503,42.10568511,3837.5,3837.4,1.27504]
[1760258370304,41.79138511,3837.5,3837.4,1.27504]
[1760258370608,41.02654047,3837.5,3837.4,1.27504]
[1760258371406,41.79787569,3837.5,3837.4,1.27504]
[1760258372303,41.57327569,3837.5,3837.4,1.27504]
[1760258373096,1.71546245,3837.5,3837.4,6.27504]
[1760258373300,1.71546245,3837.5,3837.4,1.27504]
[1760258373503,0.77863765,3837.5,3837.4,6.27504]
[1760258374503,0.77863765,3837.5,3837.4,1.27504]
[1760258374910,41.57863765,3837.5,3837.4,1.27504]
[1760258375807,0.77863765,3837.5,3837.4,1.27504]
[1760258376108,2.49676245,3837.5,3837.4,1.04014]
[1760258376308,41.57863765,3837.5,3837.4,1.27504]
[1760258376906,42.51407485,3837.5,3837.4,1.27504]
[1760258377304,41.57863765,3837.5,3837.4,1.27504]
[1760258378004,42.5140141,3837.5,3837.4,1.27504]
[1760258378200,0.77863765,3837.5,3837.4,1.27504]
[1760258379109,0.77863765,3837.5,3837.4,4.48284]
[1760258382610,0.77863765,3837.5,3837.4,1.27504]
[1760258382911,0.78663765,3837.5,3837.4,4.48284]